[Event "Titled Tuesday Blitz August 15 Late 2023"]
[White "campochess"]
[Black "sebastianmarinp"]
[WhiteElo "2160"]
[BlackElo "2393"]
[Result "0-1"]
[Round "5"]
[TimeControl "180+1"]
[Date "2023.08.15"]
[WhiteClock "0:00:13"]
[BlackClock "0:00:59"]
[Board "141"]

1. d4 {[%clk 0:02:52]}  Nf6 {[%clk 0:02:59]} 2. Bg5 {[%clk 0:02:52]}  e6 {[%clk 0:02:58]} 3. e4 {[%clk 0:02:51]}  h6 {[%clk 0:02:57]} 4. Bxf6 {[%clk 0:02:51]}  Qxf6 {[%clk 0:02:58]} 5. Nf3 {[%clk 0:02:50]}  d6 {[%clk 0:02:58]} 6. c4 {[%clk 0:02:49]}  g5 {[%clk 0:02:56]} 7. h3 {[%clk 0:02:48]}  Bg7 {[%clk 0:02:55]} 8. Nc3 {[%clk 0:02:48]}  Nd7 {[%clk 0:02:53]} 9. Be2 {[%clk 0:02:39]}  a6 {[%clk 0:02:51]} 10. Rc1 {[%clk 0:02:32]}  O-O {[%clk 0:02:48]} 11. O-O {[%clk 0:02:18]}  b6 {[%clk 0:02:47]} 12. Bd3 {[%clk 0:02:12]}  Bb7 {[%clk 0:02:46]} 13. Ne2 {[%clk 0:02:12]}  c5 {[%clk 0:02:39]} 14. d5 {[%clk 0:02:07]}  exd5 {[%clk 0:02:32]} 15. exd5 {[%clk 0:02:05]}  Qxb2 {[%clk 0:02:31]} 16. Ng3 {[%clk 0:01:57]}  Ne5 {[%clk 0:02:22]} 17. Bb1 {[%clk 0:01:55]}  Bc8 {[%clk 0:02:06]} 18. Ne1 {[%clk 0:01:46]}  Ng6 {[%clk 0:01:59]} 19. Rc2 {[%clk 0:01:46]}  Qd4 {[%clk 0:01:51]} 20. Nf3 {[%clk 0:01:42]}  Qxd1 {[%clk 0:01:44]} 21. Rxd1 {[%clk 0:01:41]}  f5 {[%clk 0:01:40]} 22. Re2 {[%clk 0:01:34]}  Bd7 {[%clk 0:01:37]} 23. Rde1 {[%clk 0:01:32]}  Bc3 {[%clk 0:01:30]} 24. Rc1 {[%clk 0:01:31]}  Be5 {[%clk 0:01:24]} 25. Nxe5 {[%clk 0:01:27]}  Nxe5 {[%clk 0:01:25]} 26. Rb2 {[%clk 0:01:13]}  b5 {[%clk 0:01:23]} 27. cxb5 {[%clk 0:01:05]}  axb5 {[%clk 0:01:23]} 28. Rd1 {[%clk 0:00:45]}  b4 {[%clk 0:01:22]} 29. Nf1 {[%clk 0:00:44]}  f4 {[%clk 0:01:14]} 30. Nh2 {[%clk 0:00:42]}  Bf5 {[%clk 0:01:09]} 31. f3 {[%clk 0:00:39]}  Bxb1 {[%clk 0:01:08]} 32. Rdxb1 {[%clk 0:00:38]}  Ra3 {[%clk 0:01:04]} 33. Ng4 {[%clk 0:00:32]}  Nxg4 {[%clk 0:01:04]} 34. hxg4 {[%clk 0:00:31]}  Rfa8 {[%clk 0:01:04]} 35. Re1 {[%clk 0:00:28]}  Rxa2 {[%clk 0:01:03]} 36. Rxa2 {[%clk 0:00:27]}  Rxa2 {[%clk 0:01:04]} 37. Re8+ {[%clk 0:00:23]}  Kf7 {[%clk 0:01:03]} 38. Rb8 {[%clk 0:00:23]}  Rd2 {[%clk 0:01:02]} 39. Rb7+ {[%clk 0:00:19]}  Kf6 {[%clk 0:01:02]} 40. Rh7 {[%clk 0:00:19]}  b3 {[%clk 0:00:58]} 41. Rxh6+ {[%clk 0:00:18]}  Ke5 {[%clk 0:00:59]} 42. Re6+ {[%clk 0:00:18]}  Kxd5 {[%clk 0:00:59]} 43. Re1 {[%clk 0:00:17]}  b2 {[%clk 0:00:59]} 44. Rb1 {[%clk 0:00:13]}  c4 {[%clk 0:00:59]} 0-1


[Site "https://www.chess.com"]

[Event "Titled Tuesday Blitz August 15 Late 2023"]
[White "Fernandez Garcia, Gumersindo"]
[Black "Ottosen, David"]
[WhiteFideId "24516740"]
[BlackFideId "2603080"]
[WhiteElo "2391"]
[BlackElo "2124"]
[Result "1-0"]
[Round "5"]
[TimeControl "180+1"]
[Date "2023.08.15"]
[WhiteClock "0:00:14"]
[BlackClock "0:00:18"]
[Board "142"]

1. e4 {[%clk 0:03:00]}  e6 {[%clk 0:02:57]} 2. d4 {[%clk 0:03:00]}  d5 {[%clk 0:02:57]} 3. Bd3 {[%clk 0:02:58]}  c5 {[%clk 0:02:50]} 4. exd5 {[%clk 0:02:57]}  Qxd5 {[%clk 0:02:49]} 5. Nf3 {[%clk 0:02:55]}  Bd7 {[%clk 0:02:48]} 6. Nc3 {[%clk 0:02:50]}  Qh5 {[%clk 0:02:45]} 7. O-O {[%clk 0:02:42]}  Nf6 {[%clk 0:02:41]} 8. Be3 {[%clk 0:02:38]}  cxd4 {[%clk 0:02:34]} 9. Nxd4 {[%clk 0:02:38]}  Qxd1 {[%clk 0:02:33]} 10. Raxd1 {[%clk 0:02:37]}  a6 {[%clk 0:02:33]} 11. Rfe1 {[%clk 0:02:35]}  Nc6 {[%clk 0:02:32]} 12. Ne4 {[%clk 0:02:21]}  Be7 {[%clk 0:02:26]} 13. c3 {[%clk 0:02:17]}  O-O {[%clk 0:02:24]} 14. Nb3 {[%clk 0:01:40]}  Ne5 {[%clk 0:02:17]} 15. Nxf6+ {[%clk 0:01:23]}  Bxf6 {[%clk 0:02:15]} 16. Be4 {[%clk 0:01:23]}  Bc6 {[%clk 0:02:13]} 17. Bd4 {[%clk 0:01:17]}  Bxe4 {[%clk 0:02:12]} 18. Rxe4 {[%clk 0:01:17]}  Rfd8 {[%clk 0:02:06]} 19. Rde1 {[%clk 0:00:41]}  Nc6 {[%clk 0:02:03]} 20. Bxf6 {[%clk 0:00:40]}  gxf6 {[%clk 0:02:03]} 21. g3 {[%clk 0:00:39]}  f5 {[%clk 0:02:01]} 22. R4e2 {[%clk 0:00:39]}  Rd5 {[%clk 0:02:00]} 23. Kg2 {[%clk 0:00:38]}  Rad8 {[%clk 0:01:59]} 24. Rc1 {[%clk 0:00:36]}  Kg7 {[%clk 0:01:55]} 25. a4 {[%clk 0:00:34]}  Kf6 {[%clk 0:01:50]} 26. h4 {[%clk 0:00:32]}  f4 {[%clk 0:01:47]} 27. g4 {[%clk 0:00:28]}  h5 {[%clk 0:01:38]} 28. g5+ {[%clk 0:00:25]}  Kf5 {[%clk 0:01:39]} 29. Rce1 {[%clk 0:00:24]}  Kg4 {[%clk 0:01:31]} 30. Re4 {[%clk 0:00:22]}  e5 {[%clk 0:01:15]} 31. Rh1 {[%clk 0:00:20]}  Kf5 {[%clk 0:01:08]} 32. f3 {[%clk 0:00:21]}  f6 {[%clk 0:01:07]} 33. gxf6 {[%clk 0:00:20]}  Kxf6 {[%clk 0:01:06]} 34. Kf2 {[%clk 0:00:19]}  Rg8 {[%clk 0:01:05]} 35. Rg1 {[%clk 0:00:19]}  Rxg1 {[%clk 0:01:04]} 36. Kxg1 {[%clk 0:00:20]}  Rd1+ {[%clk 0:01:04]} 37. Kg2 {[%clk 0:00:20]}  Kf5 {[%clk 0:00:53]} 38. Nc5 {[%clk 0:00:19]}  Rd2+ {[%clk 0:00:52]} 39. Kh3 {[%clk 0:00:20]}  Rxb2 {[%clk 0:00:51]} 40. Re1 {[%clk 0:00:19]}  Rc2 {[%clk 0:00:46]} 41. Ne4 {[%clk 0:00:19]}  Ra2 {[%clk 0:00:40]} 42. Rb1 {[%clk 0:00:19]}  Na5 {[%clk 0:00:36]} 43. Rb6 {[%clk 0:00:18]}  Nc6 {[%clk 0:00:31]} 44. Rxb7 {[%clk 0:00:19]}  Rxa4 {[%clk 0:00:31]} 45. Rb6 {[%clk 0:00:19]}  Rc4 {[%clk 0:00:31]} 46. Rxa6 {[%clk 0:00:20]}  Ke6 {[%clk 0:00:30]} 47. Rb6 {[%clk 0:00:20]}  Kd5 {[%clk 0:00:30]} 48. Rb7 {[%clk 0:00:19]}  Ra4 {[%clk 0:00:29]} 49. Rd7+ {[%clk 0:00:19]}  Kc4 {[%clk 0:00:28]} 50. Rh7 {[%clk 0:00:20]}  Kd3 {[%clk 0:00:28]} 51. Rxh5 {[%clk 0:00:20]}  Ke3 {[%clk 0:00:29]} 52. Rh6 {[%clk 0:00:20]}  Kxf3 {[%clk 0:00:29]} 53. Ng5+ {[%clk 0:00:21]}  Ke3 {[%clk 0:00:27]} 54. Rxc6 {[%clk 0:00:21]}  f3 {[%clk 0:00:27]} 55. Rf6 {[%clk 0:00:17]}  e4 {[%clk 0:00:27]} 56. h5 {[%clk 0:00:16]}  f2 {[%clk 0:00:27]} 57. h6 {[%clk 0:00:16]}  Ra3 {[%clk 0:00:26]} 58. h7 {[%clk 0:00:15]}  Ra8 {[%clk 0:00:25]} 59. Nf7 {[%clk 0:00:15]}  Ke2 {[%clk 0:00:24]} 60. Kg2 {[%clk 0:00:14]}  e3 {[%clk 0:00:24]} 61. h8=Q {[%clk 0:00:13]}  Rxh8 {[%clk 0:00:23]} 62. Nxh8 {[%clk 0:00:14]}  Ke1 {[%clk 0:00:21]} 63. c4 {[%clk 0:00:14]}  e2 {[%clk 0:00:21]} 64. Rxf2 {[%clk 0:00:14]}  Kd1 {[%clk 0:00:18]} 65. Rxe2 {[%clk 0:00:14]} 1-0


[Site "https://www.chess.com"]

[Event "Titled Tuesday Blitz August 15 Late 2023"]
[White "Joubert, Dantelle"]
[Black "Mikhalsky, Vladimir"]
[WhiteFideId "14310813"]
[BlackFideId "14144352"]
[WhiteElo "2071"]
[BlackElo "2383"]
[Result "0-1"]
[Round "5"]
[TimeControl "180+1"]
[Date "2023.08.15"]
[WhiteClock "0:00:09"]
[BlackClock "0:00:15"]
[Board "143"]

1. e4 {[%clk 0:03:00]}  g6 {[%clk 0:02:59]} 2. d4 {[%clk 0:03:00]}  Bg7 {[%clk 0:02:59]} 3. Nc3 {[%clk 0:02:59]}  d6 {[%clk 0:02:59]} 4. Be3 {[%clk 0:02:59]}  a6 {[%clk 0:02:58]} 5. Qd2 {[%clk 0:02:58]}  b5 {[%clk 0:02:58]} 6. f3 {[%clk 0:02:56]}  Nd7 {[%clk 0:02:57]} 7. O-O-O {[%clk 0:02:56]}  Nb6 {[%clk 0:02:57]} 8. h4 {[%clk 0:02:23]}  h5 {[%clk 0:02:56]} 9. Be2 {[%clk 0:02:14]}  Nf6 {[%clk 0:02:53]} 10. e5 {[%clk 0:02:14]}  Nfd5 {[%clk 0:02:52]} 11. Nxd5 {[%clk 0:02:12]}  Nxd5 {[%clk 0:02:52]} 12. Kb1 {[%clk 0:02:04]}  Nxe3 {[%clk 0:02:45]} 13. Qxe3 {[%clk 0:02:03]}  Be6 {[%clk 0:02:06]} 14. g4 {[%clk 0:01:59]}  Bd5 {[%clk 0:01:49]} 15. Rh2 {[%clk 0:01:52]}  e6 {[%clk 0:01:41]} 16. f4 {[%clk 0:01:41]}  hxg4 {[%clk 0:01:39]} 17. Bxg4 {[%clk 0:01:38]}  Rxh4 {[%clk 0:01:39]} 18. Rxh4 {[%clk 0:01:26]}  Qxh4 {[%clk 0:01:38]} 19. Bf3 {[%clk 0:01:25]}  Qg3 {[%clk 0:01:26]} 20. Qd3 {[%clk 0:01:08]}  Bxf3 {[%clk 0:01:14]} 21. Qxf3 {[%clk 0:01:06]}  Qxf3 {[%clk 0:01:13]} 22. Nxf3 {[%clk 0:01:07]}  O-O-O {[%clk 0:01:12]} 23. b3 {[%clk 0:01:01]}  Bh6 {[%clk 0:01:08]} 24. d5 {[%clk 0:00:49]}  Bxf4 {[%clk 0:01:00]} 25. dxe6 {[%clk 0:00:49]}  fxe6 {[%clk 0:01:00]} 26. exd6 {[%clk 0:00:48]}  cxd6 {[%clk 0:00:53]} 27. Re1 {[%clk 0:00:44]}  Kd7 {[%clk 0:00:42]} 28. Nd4 {[%clk 0:00:40]}  e5 {[%clk 0:00:40]} 29. Ne2 {[%clk 0:00:37]}  g5 {[%clk 0:00:38]} 30. Rh1 {[%clk 0:00:37]}  g4 {[%clk 0:00:37]} 31. Nc3 {[%clk 0:00:33]}  g3 {[%clk 0:00:33]} 32. Ne4 {[%clk 0:00:31]}  Ke6 {[%clk 0:00:30]} 33. c4 {[%clk 0:00:26]}  bxc4 {[%clk 0:00:28]} 34. bxc4 {[%clk 0:00:25]}  d5 {[%clk 0:00:28]} 35. cxd5+ {[%clk 0:00:25]}  Kxd5 {[%clk 0:00:24]} 36. Nxg3 {[%clk 0:00:16]}  Rb8+ {[%clk 0:00:20]} 37. Kc2 {[%clk 0:00:13]}  Bxg3 {[%clk 0:00:19]} 38. Rh6 {[%clk 0:00:13]}  Rc8+ {[%clk 0:00:17]} 39. Kd3 {[%clk 0:00:12]}  e4+ {[%clk 0:00:17]} 40. Ke3 {[%clk 0:00:12]}  Rc3+ {[%clk 0:00:16]} 41. Ke2 {[%clk 0:00:11]}  Rc6 {[%clk 0:00:15]} 42. Rxc6 {[%clk 0:00:10]}  Kxc6 {[%clk 0:00:14]} 43. Ke3 {[%clk 0:00:09]}  Kd5 {[%clk 0:00:15]} 0-1


[Site "https://www.chess.com"]

[Event "Titled Tuesday Blitz August 15 Late 2023"]
[White "Hartikainen, Jarmo"]
[Black "GAO"]
[WhiteFideId "503134"]
[WhiteElo "2106"]
[BlackElo "2303"]
[Result "1-0"]
[Round "5"]
[TimeControl "180+1"]
[Date "2023.08.15"]
[WhiteClock "0:00:25"]
[BlackClock "0:00:05"]
[Board "150"]

1. e4 {[%clk 0:03:00]}  c5 {[%clk 0:02:43]} 2. c3 {[%clk 0:03:00]}  d5 {[%clk 0:02:42]} 3. exd5 {[%clk 0:03:00]}  Qxd5 {[%clk 0:02:42]} 4. d4 {[%clk 0:03:00]}  Nc6 {[%clk 0:02:42]} 5. Nf3 {[%clk 0:03:00]}  Bf5 {[%clk 0:02:42]} 6. Na3 {[%clk 0:02:57]}  e6 {[%clk 0:02:41]} 7. Be3 {[%clk 0:02:50]}  Nf6 {[%clk 0:02:39]} 8. dxc5 {[%clk 0:02:40]}  Qxd1+ {[%clk 0:02:39]} 9. Rxd1 {[%clk 0:02:38]}  Ne4 {[%clk 0:02:39]} 10. Nb5 {[%clk 0:02:34]}  Rc8 {[%clk 0:02:33]} 11. Nd6+ {[%clk 0:02:34]}  Bxd6 {[%clk 0:02:22]} 12. cxd6 {[%clk 0:02:33]}  O-O {[%clk 0:02:23]} 13. d7 {[%clk 0:02:02]}  Rcd8 {[%clk 0:02:16]} 14. Bb5 {[%clk 0:01:59]}  Bg4 {[%clk 0:01:51]} 15. Bxc6 {[%clk 0:01:51]}  bxc6 {[%clk 0:01:51]} 16. Bxa7 {[%clk 0:01:50]}  Ra8 {[%clk 0:01:45]} 17. Bb6 {[%clk 0:01:43]}  Rfd8 {[%clk 0:01:36]} 18. Bxd8 {[%clk 0:01:42]}  Rxd8 {[%clk 0:01:37]} 19. O-O {[%clk 0:01:32]}  f6 {[%clk 0:01:12]} 20. Rd4 {[%clk 0:01:23]}  Bf5 {[%clk 0:01:11]} 21. Rfd1 {[%clk 0:01:15]}  e5 {[%clk 0:01:10]} 22. Rc4 {[%clk 0:01:06]}  c5 {[%clk 0:00:59]} 23. Nh4 {[%clk 0:00:55]}  Bg4 {[%clk 0:00:30]} 24. f3 {[%clk 0:00:52]}  Be6 {[%clk 0:00:13]} 25. Rxe4 {[%clk 0:00:51]}  g5 {[%clk 0:00:14]} 26. Ra4 {[%clk 0:00:43]}  Kf7 {[%clk 0:00:12]} 27. g3 {[%clk 0:00:33]}  gxh4 {[%clk 0:00:12]} 28. Rxh4 {[%clk 0:00:33]}  Kg7 {[%clk 0:00:10]} 29. Ra4 {[%clk 0:00:30]}  Kf7 {[%clk 0:00:08]} 30. Ra5 {[%clk 0:00:28]}  Rxd7 {[%clk 0:00:07]} 31. Rxd7+ {[%clk 0:00:26]}  Bxd7 {[%clk 0:00:08]} 32. Rxc5 {[%clk 0:00:26]}  Be6 {[%clk 0:00:08]} 33. a4 {[%clk 0:00:26]}  Bd7 {[%clk 0:00:05]} 34. a5 {[%clk 0:00:25]} 1-0


[Site "https://www.chess.com"]

[Event "Titled Tuesday Blitz August 15 Late 2023"]
[White "Saucey, Michel"]
[Black "Milovic, Aleksandra"]
[WhiteFideId "601845"]
[BlackFideId "933988"]
[WhiteElo "2258"]
[BlackElo "2098"]
[Result "1-0"]
[Round "5"]
[TimeControl "180+1"]
[Date "2023.08.15"]
[WhiteClock "0:01:14"]
[BlackClock "0:00:53"]
[Board "151"]

1. d4 {[%clk 0:02:56]}  d5 {[%clk 0:02:59]} 2. c4 {[%clk 0:02:54]}  e6 {[%clk 0:02:59]} 3. Nc3 {[%clk 0:02:54]}  Nf6 {[%clk 0:02:59]} 4. Nf3 {[%clk 0:02:53]}  c6 {[%clk 0:02:58]} 5. e3 {[%clk 0:02:53]}  Be7 {[%clk 0:02:59]} 6. Bd3 {[%clk 0:02:50]}  O-O {[%clk 0:02:59]} 7. O-O {[%clk 0:02:49]}  Nbd7 {[%clk 0:02:59]} 8. b3 {[%clk 0:02:49]}  b6 {[%clk 0:02:58]} 9. Bb2 {[%clk 0:02:49]}  Bb7 {[%clk 0:02:58]} 10. Ne5 {[%clk 0:02:43]}  c5 {[%clk 0:02:57]} 11. cxd5 {[%clk 0:02:39]}  exd5 {[%clk 0:02:55]} 12. f4 {[%clk 0:02:34]}  Ne4 {[%clk 0:02:55]} 13. Nxe4 {[%clk 0:02:29]}  dxe4 {[%clk 0:02:56]} 14. Bc4 {[%clk 0:02:28]}  Nf6 {[%clk 0:02:46]} 15. Qe2 {[%clk 0:02:20]}  Bd5 {[%clk 0:02:43]} 16. Rfd1 {[%clk 0:02:17]}  Bxc4 {[%clk 0:02:42]} 17. bxc4 {[%clk 0:02:16]}  Qc7 {[%clk 0:02:36]} 18. d5 {[%clk 0:02:14]}  Rfd8 {[%clk 0:02:32]} 19. Nc6 {[%clk 0:02:13]}  Rd7 {[%clk 0:02:29]} 20. Be5 {[%clk 0:02:10]}  Qc8 {[%clk 0:02:25]} 21. Nxe7+ {[%clk 0:02:07]}  Rxe7 {[%clk 0:02:25]} 22. Bxf6 {[%clk 0:02:08]}  gxf6 {[%clk 0:02:25]} 23. Qh5 {[%clk 0:01:58]}  Qf8 {[%clk 0:01:57]} 24. a4 {[%clk 0:01:49]}  Rd8 {[%clk 0:01:48]} 25. a5 {[%clk 0:01:47]}  Red7 {[%clk 0:01:46]} 26. axb6 {[%clk 0:01:46]}  axb6 {[%clk 0:01:47]} 27. Rdb1 {[%clk 0:01:43]}  Rd6 {[%clk 0:01:42]} 28. Ra7 {[%clk 0:01:40]}  Qg7 {[%clk 0:01:39]} 29. h3 {[%clk 0:01:24]}  h6 {[%clk 0:01:37]} 30. Qg4 {[%clk 0:01:24]}  Qxg4 {[%clk 0:01:36]} 31. hxg4 {[%clk 0:01:24]}  Rb8 {[%clk 0:01:28]} 32. Rc7 {[%clk 0:01:20]}  Kg7 {[%clk 0:01:16]} 33. Rxc5 {[%clk 0:01:18]}  bxc5 {[%clk 0:01:13]} 34. Rxb8 {[%clk 0:01:17]}  Ra6 {[%clk 0:01:13]} 35. Rc8 {[%clk 0:01:17]}  Ra5 {[%clk 0:01:13]} 36. d6 {[%clk 0:01:16]}  Ra7 {[%clk 0:00:58]} 37. Rxc5 {[%clk 0:01:15]}  Rd7 {[%clk 0:00:58]} 38. Rd5 {[%clk 0:01:14]}  Kf8 {[%clk 0:00:53]} 39. c5 {[%clk 0:01:14]} 1-0


[Site "https://www.chess.com"]

[Event "Titled Tuesday Blitz August 15 Late 2023"]
[White "Schut, Han"]
[Black "Maluco_do_Natal_00"]
[WhiteFideId "1005561"]
[WhiteElo "2236"]
[BlackElo "2074"]
[Result "1-0"]
[Round "5"]
[TimeControl "180+1"]
[Date "2023.08.15"]
[WhiteClock "0:02:45"]
[BlackClock "0:00:47"]
[Board "152"]

1. e4 {[%clk 0:03:00]}  c5 {[%clk 0:02:57]} 2. Nf3 {[%clk 0:03:00]}  Nc6 {[%clk 0:02:54]} 3. d4 {[%clk 0:03:00]}  cxd4 {[%clk 0:02:55]} 4. Nxd4 {[%clk 0:03:01]}  Nf6 {[%clk 0:02:56]} 5. Nc3 {[%clk 0:03:00]}  e5 {[%clk 0:02:56]} 6. Ndb5 {[%clk 0:03:00]}  d6 {[%clk 0:02:56]} 7. Nd5 {[%clk 0:03:01]}  Nxd5 {[%clk 0:02:54]} 8. exd5 {[%clk 0:03:02]}  Nb8 {[%clk 0:02:54]} 9. Qf3 {[%clk 0:03:02]}  Be7 {[%clk 0:02:48]} 10. Qc3 {[%clk 0:03:00]}  Na6 {[%clk 0:02:42]} 11. Be3 {[%clk 0:03:00]}  b6 {[%clk 0:02:34]} 12. Qc6+ {[%clk 0:02:55]}  Bd7 {[%clk 0:02:25]} 13. Qb7 {[%clk 0:02:54]}  Qc8 {[%clk 0:01:54]} 14. Qxa6 {[%clk 0:02:50]}  Qxc2 {[%clk 0:00:47]} 15. Rc1 {[%clk 0:02:45]} 1-0


[Site "https://www.chess.com"]

[Event "Titled Tuesday Blitz August 15 Late 2023"]
[White "Womacka, Mathias"]
[Black "Alexikov, Alexander"]
[WhiteFideId "4611390"]
[BlackFideId "14103958"]
[WhiteElo "2459"]
[BlackElo "2213"]
[Result "1-0"]
[Round "5"]
[TimeControl "180+1"]
[Date "2023.08.15"]
[WhiteClock "0:00:14"]
[BlackClock "0:00:00"]
[Board "154"]

1. e4 {[%clk 0:02:59]}  c5 {[%clk 0:02:57]} 2. Nf3 {[%clk 0:02:58]}  d6 {[%clk 0:02:57]} 3. d4 {[%clk 0:02:59]}  cxd4 {[%clk 0:02:57]} 4. Nxd4 {[%clk 0:03:00]}  Nf6 {[%clk 0:02:57]} 5. Nc3 {[%clk 0:03:00]}  a6 {[%clk 0:02:57]} 6. Be2 {[%clk 0:03:00]}  e5 {[%clk 0:02:56]} 7. Nb3 {[%clk 0:03:00]}  Be6 {[%clk 0:02:55]} 8. f4 {[%clk 0:02:59]}  Qc7 {[%clk 0:02:54]} 9. g4 {[%clk 0:02:59]}  h6 {[%clk 0:02:43]} 10. g5 {[%clk 0:02:58]}  hxg5 {[%clk 0:02:42]} 11. fxg5 {[%clk 0:02:59]}  Nfd7 {[%clk 0:02:37]} 12. Bg4 {[%clk 0:02:59]}  Rh4 {[%clk 0:02:18]} 13. Bxe6 {[%clk 0:02:37]}  fxe6 {[%clk 0:02:16]} 14. Be3 {[%clk 0:02:32]}  Nc6 {[%clk 0:02:06]} 15. Qf3 {[%clk 0:02:25]}  Be7 {[%clk 0:02:04]} 16. Qg3 {[%clk 0:02:15]}  Rh8 {[%clk 0:01:59]} 17. Qg4 {[%clk 0:02:14]}  Nf8 {[%clk 0:01:55]} 18. O-O-O {[%clk 0:02:10]}  b5 {[%clk 0:01:26]} 19. Kb1 {[%clk 0:02:03]}  b4 {[%clk 0:01:20]} 20. Na4 {[%clk 0:02:02]}  Rb8 {[%clk 0:01:19]} 21. h4 {[%clk 0:01:59]}  Rb5 {[%clk 0:01:14]} 22. h5 {[%clk 0:01:52]}  Na5 {[%clk 0:01:04]} 23. Nxa5 {[%clk 0:01:39]}  Qxa5 {[%clk 0:00:58]} 24. b3 {[%clk 0:01:39]}  Qc7 {[%clk 0:00:57]} 25. h6 {[%clk 0:01:31]}  g6 {[%clk 0:00:56]} 26. Rd3 {[%clk 0:01:13]}  Kd7 {[%clk 0:00:54]} 27. c4 {[%clk 0:01:05]}  bxc3 {[%clk 0:00:46]} 28. Nxc3 {[%clk 0:01:04]}  Rb8 {[%clk 0:00:40]} 29. Nd5 {[%clk 0:00:56]}  Qb7 {[%clk 0:00:33]} 30. Rc1 {[%clk 0:00:47]}  Bd8 {[%clk 0:00:29]} 31. Rdc3 {[%clk 0:00:38]}  Ke8 {[%clk 0:00:27]} 32. Nc7+ {[%clk 0:00:36]}  Bxc7 {[%clk 0:00:25]} 33. Rxc7 {[%clk 0:00:36]}  Qb5 {[%clk 0:00:21]} 34. Qf3 {[%clk 0:00:27]}  Rh7 {[%clk 0:00:12]} 35. Rxh7 {[%clk 0:00:23]}  Nxh7 {[%clk 0:00:11]} 36. Bd2 {[%clk 0:00:18]}  a5 {[%clk 0:00:06]} 37. Rc7 {[%clk 0:00:18]}  Kd8 {[%clk 0:00:00]} 38. Rxh7 {[%clk 0:00:14]} 1-0


[Site "https://www.chess.com"]

[Event "Titled Tuesday Blitz August 15 Late 2023"]
[White "Fernandez Hernandez, Gerardo"]
[Black "laskakid"]
[WhiteFideId "2207400"]
[WhiteElo "2237"]
[BlackElo "2125"]
[Result "0-1"]
[Round "5"]
[TimeControl "180+1"]
[Date "2023.08.15"]
[WhiteClock "0:00:00"]
[BlackClock "0:00:29"]
[Board "157"]

1. e4 {[%clk 0:03:00]}  e5 {[%clk 0:02:59]} 2. Nf3 {[%clk 0:03:00]}  Nc6 {[%clk 0:02:59]} 3. Bc4 {[%clk 0:03:00]}  Nf6 {[%clk 0:02:58]} 4. d4 {[%clk 0:02:59]}  exd4 {[%clk 0:02:57]} 5. e5 {[%clk 0:02:59]}  d5 {[%clk 0:02:56]} 6. Bb5 {[%clk 0:02:59]}  Nd7 {[%clk 0:02:56]} 7. O-O {[%clk 0:02:48]}  Be7 {[%clk 0:02:50]} 8. Bxc6 {[%clk 0:02:32]}  bxc6 {[%clk 0:02:49]} 9. Re1 {[%clk 0:02:30]}  c5 {[%clk 0:02:36]} 10. b4 {[%clk 0:02:20]}  O-O {[%clk 0:02:23]} 11. bxc5 {[%clk 0:02:18]}  Bxc5 {[%clk 0:02:23]} 12. Nxd4 {[%clk 0:02:16]}  Qh4 {[%clk 0:02:06]} 13. c3 {[%clk 0:01:53]}  Re8 {[%clk 0:02:00]} 14. g3 {[%clk 0:01:40]}  Qh3 {[%clk 0:01:54]} 15. Bf4 {[%clk 0:01:14]}  Nb6 {[%clk 0:01:34]} 16. Qf3 {[%clk 0:00:57]}  Bg4 {[%clk 0:01:29]} 17. Qg2 {[%clk 0:00:57]}  Qh5 {[%clk 0:01:26]} 18. Nd2 {[%clk 0:00:56]}  Rad8 {[%clk 0:01:17]} 19. N4b3 {[%clk 0:00:52]}  Bf8 {[%clk 0:01:10]} 20. f3 {[%clk 0:00:40]}  Bc8 {[%clk 0:01:05]} 21. g4 {[%clk 0:00:39]}  Qg6 {[%clk 0:01:03]} 22. Qf1 {[%clk 0:00:30]}  Na4 {[%clk 0:00:56]} 23. Rac1 {[%clk 0:00:27]}  Nb2 {[%clk 0:00:50]} 24. Re3 {[%clk 0:00:17]}  Ba6 {[%clk 0:00:46]} 25. Qf2 {[%clk 0:00:14]}  Nd3 {[%clk 0:00:45]} 26. Rf1 {[%clk 0:00:09]}  Nxf2 {[%clk 0:00:44]} 27. Rxf2 {[%clk 0:00:10]}  c5 {[%clk 0:00:41]} 28. Bg3 {[%clk 0:00:06]}  d4 {[%clk 0:00:40]} 29. cxd4 {[%clk 0:00:06]}  cxd4 {[%clk 0:00:40]} 30. Re1 {[%clk 0:00:06]}  d3 {[%clk 0:00:38]} 31. f4 {[%clk 0:00:06]}  Qb6 {[%clk 0:00:36]} 32. f5 {[%clk 0:00:05]}  Bc5 {[%clk 0:00:35]} 33. Nxc5 {[%clk 0:00:05]}  Qxc5 {[%clk 0:00:35]} 34. h4 {[%clk 0:00:03]}  Bb7 {[%clk 0:00:34]} 35. Nf1 {[%clk 0:00:01]}  d2 {[%clk 0:00:31]} 36. Nxd2 {[%clk 0:00:00]}  Rxd2 {[%clk 0:00:29]} 0-1


[Site "https://www.chess.com"]

[Event "Titled Tuesday Blitz August 15 Late 2023"]
[White "Duda, Jan-Krzysztof"]
[Black "Firouzja, Alireza"]
[WhiteFideId "1170546"]
[BlackFideId "12573981"]
[WhiteElo "3063"]
[BlackElo "3134"]
[Result "1-0"]
[Round "6"]
[TimeControl "180+1"]
[Date "2023.08.15"]
[WhiteClock "0:00:56"]
[BlackClock "0:00:00"]
[Board "1"]

1. c4 {[%clk 0:03:00]}  g6 {[%clk 0:02:58]} 2. Nc3 {[%clk 0:03:00]}  Bg7 {[%clk 0:02:58]} 3. g3 {[%clk 0:03:00]}  Nf6 {[%clk 0:02:54]} 4. Bg2 {[%clk 0:03:00]}  O-O {[%clk 0:02:54]} 5. e4 {[%clk 0:03:00]}  d6 {[%clk 0:02:53]} 6. Nge2 {[%clk 0:02:59]}  c5 {[%clk 0:02:51]} 7. O-O {[%clk 0:02:58]}  Nc6 {[%clk 0:02:52]} 8. h3 {[%clk 0:02:57]}  a6 {[%clk 0:02:52]} 9. d3 {[%clk 0:02:54]}  Rb8 {[%clk 0:02:52]} 10. a4 {[%clk 0:02:52]}  b6 {[%clk 0:02:44]} 11. Be3 {[%clk 0:02:50]}  Bb7 {[%clk 0:02:43]} 12. d4 {[%clk 0:02:50]}  Nd7 {[%clk 0:02:38]} 13. d5 {[%clk 0:02:40]}  Na5 {[%clk 0:02:25]} 14. b3 {[%clk 0:02:40]}  Re8 {[%clk 0:02:25]} 15. Rb1 {[%clk 0:02:39]}  e6 {[%clk 0:02:13]} 16. Qd2 {[%clk 0:02:39]}  exd5 {[%clk 0:02:11]} 17. exd5 {[%clk 0:02:39]}  Nf6 {[%clk 0:02:06]} 18. Bh6 {[%clk 0:02:34]}  Bc8 {[%clk 0:02:04]} 19. g4 {[%clk 0:02:31]}  Rb7 {[%clk 0:01:49]} 20. Ng3 {[%clk 0:02:30]}  Rbe7 {[%clk 0:01:37]} 21. Bxg7 {[%clk 0:02:23]}  Kxg7 {[%clk 0:01:38]} 22. g5 {[%clk 0:02:21]}  Nh5 {[%clk 0:01:38]} 23. Nxh5+ {[%clk 0:01:52]}  gxh5 {[%clk 0:01:39]} 24. Kh2 {[%clk 0:01:30]}  Bf5 {[%clk 0:01:36]} 25. Rb2 {[%clk 0:01:31]}  Re5 {[%clk 0:01:35]} 26. Nd1 {[%clk 0:01:23]}  Bg6 {[%clk 0:01:04]} 27. f4 {[%clk 0:01:18]}  Re2 {[%clk 0:01:01]} 28. Qc3+ {[%clk 0:01:18]}  Kg8 {[%clk 0:01:01]} 29. Rxe2 {[%clk 0:01:09]}  Rxe2 {[%clk 0:01:01]} 30. Qf3 {[%clk 0:01:09]}  Qe7 {[%clk 0:00:40]} 31. f5 {[%clk 0:01:09]}  Qe5+ {[%clk 0:00:38]} 32. Kg1 {[%clk 0:01:09]}  Bxf5 {[%clk 0:00:29]} 33. Qxf5 {[%clk 0:01:10]}  Qxf5 {[%clk 0:00:30]} 34. Rxf5 {[%clk 0:01:10]}  Nxb3 {[%clk 0:00:30]} 35. Bf3 {[%clk 0:01:10]}  Rc2 {[%clk 0:00:05]} 36. Ne3 {[%clk 0:01:00]}  Rc3 {[%clk 0:00:04]} 37. Kf2 {[%clk 0:01:00]}  Nd4 {[%clk 0:00:05]} 38. Rf6 {[%clk 0:00:59]}  b5 {[%clk 0:00:02]} 39. axb5 {[%clk 0:00:57]}  axb5 {[%clk 0:00:03]} 40. cxb5 {[%clk 0:00:56]}  Nxb5 {[%clk 0:00:00]} 41. Bxh5 {[%clk 0:00:56]} 1-0


[Site "https://www.chess.com"]